bitfinex-derivatives/quotes_ETHF0:USTF0_20230702
["timestamp","ask_amount","ask_price","bid_price","bid_amount"]
[1688257705859,1.16467313,1922.2,1922.1,5.76289971]
[1688257707145,1.16467313,1922.2,1922.1,5.47618336]
[1688257707948,1.16467313,1922.2,1922.1,5.76289971]
[1688257708548,0.85252313,1922.2,1922.1,5.76289971]
[1688257709057,0.31213,1922.3,1922.1,5.76289971]
[1688257709254,0.85249483,1922.2,1922.1,1.07489971]
[1688257709550,0.85249483,1922.2,1922.1,5.76289971]
[1688257710662,0.74224284,1922.4,1922.1,5.76289971]
[1688257710853,0.74224284,1922.4,1922.3,5.00013]
[1688257711053,0.74224284,1922.4,1922.3,5.28684635]
[1688257713366,0.43012284,1922.4,1922.3,5.28684635]
[1688257715361,0.00780336,1922.4,1922.3,5.28684635]
[1688257715668,0.00780336,1922.4,1922.3,10.27754635]
[1688257717156,0.42163459,1922.6,1922.4,0.26235749]
[1688257717359,0.31209,1922.6,1922.5,5.28681635]
[1688257720471,0.94407214,1922.7,1922.5,5.28681635]
[1688257720664,0.94407214,1922.7,1922.6,4.688]
[1688257720876,0.94407214,1922.7,1922.6,5.00008]
[1688257721280,0.00780214,1922.7,1922.6,5.26243749]
[1688257721563,0.31202,1923.0,1922.7,0.28671635]
[1688257721767,0.31202,1923.0,1922.9,4.688]
[1688257721966,0.31202,1923.0,1922.9,5.00004]
[1688257722468,0.31202,1923.0,1922.9,5.28675635]
[1688257722670,11.69273827,1923.1,1923.0,4.652]
[1688257722965,11.69273827,1923.1,1923.0,9.91437749]
[1688257725874,5.68069827,1923.1,1923.0,9.91437749]
[1688257726067,1.55462524,1923.1,1923.0,9.91437749]
[1688257728266,0.31194,1923.5,1923.1,0.28671635]
[1688257728480,0.31195,1923.4,1923.2,3.78213749]
[1688257728763,0.31195,1923.4,1923.3,9.99281635]
[1688257729066,0.31195,1923.4,1923.3,5.28668635]
[1688257732771,9.64845202,1923.5,1923.3,5.28668635]
[1688257732772,5.66078202,1923.5,1923.3,5.28668635]
[1688257732964,5.66078202,1923.5,1923.4,8.47010749]
[1688257733158,5.66078202,1923.5,1923.4,13.28540749]
[1688257733860,0.41348202,1923.5,1923.4,13.28540749]
[1688257734668,1.4718974,1923.5,1923.4,13.28540749]
[1688257735259,10.3806,1923.8,1923.4,13.38940749]
[1688257735474,0.31187,1923.9,1923.7,7.8958]
[1688257735682,0.31187,1923.9,1923.8,5.28660635]
[1688257736071,1.31516603,1923.9,1923.8,5.28660635]
[1688257737384,4.94518156,1923.9,1923.8,5.28660635]
[1688257740373,1.73738156,1923.9,1923.8,5.28660635]
[1688257741088,1.42551156,1923.9,1923.8,5.28660635]
[1688257741308,0.93545,1924.5,1923.9,5.104]
[1688257741471,0.93527,1924.9,1924.4,4.792]
[1688257741887,3.61951,1925.0,1924.8,4.688]
[1688257742026,3.61951,1925.0,1924.9,5.28642635]
[1688257742207,2.29278264,1925.3,1924.9,8.86058384]
[1688257742208,0.31165,1925.3,1924.9,8.86058384]
[1688257742487,5.71566,1925.7,1925.3,4.792]
[1688257742488,4.24646,1925.7,1925.3,4.792]
[1688257742782,1.60614412,1925.7,1925.6,4.9996]
[1688257742981,9.50194412,1925.7,1925.2,0.9349]
[1688257743191,1.55730075,1925.6,1925.5,4.688]
[1688257743391,3.2078,1925.6,1925.5,4.688]
[1688257743609,3.2078,1925.6,1925.4,0.31163]
[1688257743610,3.5194,1925.6,1925.4,4.688]
[1688257743807,3.5194,1925.6,1925.5,4.99962]
[1688257744209,0.3116,1925.6,1925.5,4.99962]
[1688257744479,0.3116,1925.6,1925.5,5.26197749]
[1688257746009,0.3116,1925.6,1925.5,7.79297749]
[1688257746389,0.3116,1925.6,1925.5,7.89697749]
[1688257746603,0.3116,1925.6,1925.5,11.10477749]
[1688257746925,0.3116,1925.6,1925.5,7.79297749]
[1688257747121,0.3116,1925.6,1925.5,7.89697749]
[1688257747408,3.66937,1926.0,1925.6,0.71010552]
[1688257747640,0.779,1925.8,1925.7,0.26235749]
[1688257747807,0.779,1925.8,1925.7,7.76807384]
[1688257747986,0.779,1925.8,1925.7,8.07965384]
[1688257748487,2.30959355,1925.8,1925.7,8.18365384]
[1688257750199,1.53059355,1925.8,1925.7,8.18365384]
[1688257750443,0.77874,1926.3,1926.0,0.104]
[1688257750794,0.77874,1926.3,1926.2,7.273]
[1688257751092,0.77874,1926.3,1926.2,7.5845]
[1688257751346,1.35660445,1926.3,1926.2,7.6885]
[1688257751413,0.31149,1926.3,1926.2,7.6885]
[1688257752200,0.31149,1926.3,1926.2,7.5845]
[1688257752700,0.31149,1926.3,1926.2,7.273]
[1688257754289,0.31149,1926.3,1926.2,7.55971635]
[1688257754707,0.31149,1926.3,1926.2,7.273]
[1688257754891,0.31149,1926.3,1925.8,0.77881]
[1688257754892,7.57949,1926.3,1925.8,7.226]
[1688257755108,3.51936,1925.9,1925.8,7.226]
[1688257756415,3.51936,1925.9,1925.8,7.82428635]
[1688257756597,0.31156,1925.9,1925.8,7.82428635]
[1688257757396,0.31156,1925.9,1925.8,7.92828635]
[1688257757989,1.4599685,1925.9,1925.8,7.92828635]
[1688257759296,4.6677685,1925.9,1925.8,7.92828635]
[1688257759796,1.1484085,1925.9,1925.8,7.92828635]
[1688257760003,0.93468,1926.2,1926.0,7.258]
[1688257760295,0.93468,1926.2,1926.1,7.226]
[1688257760496,0.93468,1926.2,1926.1,7.79987749]
[1688257760695,0.93468,1926.2,1926.1,8.08659384]
[1688257760901,0.31151,1926.2,1926.1,8.08659384]
[1688257761107,0.41213532,1926.3,1926.1,13.08659384]
[1688257761299,0.41213532,1926.3,1926.2,7.306]
[1688257761499,0.93439,1926.7,1926.6,5.0]
[1688257761500,0.31144,1926.7,1926.6,5.0]
[1688257761814,0.40537835,1926.8,1926.7,0.88252]
[1688257762027,0.1,1927.0,1926.7,13.86437857]
[1688257762205,0.8785,1927.0,1926.9,7.53039]
[1688257762695,0.8785,1927.0,1926.9,8.07946384]
[1688257763204,0.8785,1927.0,1926.9,0.86046384]
[1688257763499,0.41137,1927.0,1926.9,7.77574749]
[1688257763818,2.48107946,1927.0,1926.9,8.06246384]
[1688257764003,2.06271383,1927.0,1926.9,8.06246384]
[1688257765392,1.75134383,1927.0,1926.9,8.06246384]
[1688257765598,2.06271383,1927.0,1926.9,8.06246384]
[1688257766498,1.75134383,1927.0,1926.9,8.06246384]
[1688257766820,2.06271383,1927.0,1926.9,8.06246384]
[1688257767593,1.75134383,1927.0,1926.9,8.06246384]
[1688257767995,1.75134383,1927.0,1926.9,8.16646384]
[1688257768200,0.41449372,1927.1,1927.0,5.104]
[1688257768397,3.2078,1927.3,1927.2,12.273]
[1688257768606,3.2078,1927.3,1927.2,19.80334]
[1688257768899,3.51913,1927.3,1927.2,12.81705635]
[1688257769214,4.55416444,1927.3,1927.2,12.81705635]
[1688257769702,4.55416444,1927.3,1927.2,0.31134]
[1688257769901,4.97058612,1927.3,1927.0,7.273]
[1688257770109,3.2078,1927.1,1927.0,7.58436]
[1688257770298,3.51916,1927.1,1927.0,7.58436]
[1688257770507,4.38146967,1927.1,1927.0,7.87107635]
[1688257771310,4.38146967,1927.1,1927.0,7.58436]
[1688257771506,4.38146967,1927.1,1927.0,7.87107635]
[1688257771825,4.38146967,1927.1,1927.0,7.58436]
[1688257772001,4.38146967,1927.1,1927.0,7.87107635]
[1688257772904,4.38146967,1927.1,1926.9,0.3114]
[1688257773211,0.56748412,1927.0,1926.8,8.05142]
[1688257773415,3.5192,1926.9,1926.7,0.31921473]
[1688257773715,3.5192,1926.9,1926.8,0.31142]
[1688257775422,3.5192,1926.9,1926.8,0.59813635]
[1688257775612,3.5192,1926.9,1926.8,7.55642]
[1688257775926,3.5192,1926.9,1926.7,0.00778473]
[1688257775927,11.51476992,1926.9,1926.7,0.00778473]
[1688257776138,7.78148412,1926.8,1926.7,0.00778473]
[1688257776320,7.78148412,1926.8,1926.4,0.31148]
[1688257776321,8.09290412,1926.8,1926.3,0.3115]
[1688257776621,3.51928,1926.4,1926.3,0.3115]
[1688257779408,3.51928,1926.4,1926.3,7.80021635]
[1688257779409,3.2078,1926.4,1926.3,7.80021635]
[1688257779725,3.5193,1926.4,1926.3,7.80021635]
[1688257779917,3.2078,1926.4,1926.3,7.80021635]
[1688257780316,0.31147,1926.6,1926.4,5.0]
[1688257780518,3.51928,1926.5,1926.4,5.31148]
[1688257780721,3.51928,1926.5,1926.4,7.53748]
[1688257781112,3.51928,1926.5,1926.4,7.82419635]
[1688257781912,3.51928,1926.5,1926.4,7.53748]
[1688257783329,3.51928,1926.5,1926.4,7.82419635]
[1688257783517,3.51928,1926.5,1926.4,7.53748]
[1688257785113,3.51928,1926.5,1926.4,7.226]
[1688257785529,10.79228,1926.5,1926.2,0.00778675]
[1688257785725,3.2078,1926.3,1926.2,0.00778675]
[1688257786024,3.6223865,1926.3,1926.2,0.00778675]
[1688257786329,10.8903865,1926.3,1926.2,0.00778675]
[1688257786528,12.52704764,1926.3,1926.2,0.00778675]
[1688257789822,3.20001325,1926.1,1925.8,0.77896]
[1688257790025,0.31159,1925.8,1925.7,5.91426]
[1688257790224,7.58459,1925.8,1925.7,1.32803384]
[1688257790416,7.58459,1925.8,1925.7,0.77896]
[1688257790621,7.58459,1925.8,1925.7,0.31161]
[1688257790817,9.16656531,1925.8,1925.7,0.59832635]
[1688257791023,7.58459,1925.8,1925.7,0.59832635]
[1688257791221,0.31159,1925.8,1925.7,0.59832635]
[1688257791722,0.31159,1925.8,1925.7,7.82432635]
[1688257792219,0.31159,1925.8,1925.7,0.31161]
[1688257792439,1.90393687,1925.8,1925.7,0.31161]
[1688257792632,1.90393687,1925.8,1925.6,1.35445044]
[1688257792827,3.2078,1925.7,1925.6,1.35445044]
[1688257793019,3.51941,1925.7,1925.6,1.35445044]
[1688257793218,3.51941,1925.7,1925.6,0.94261917]
[1688257793520,3.51941,1925.7,1925.6,0.86849301]
[1688257793932,3.51941,1925.7,1925.6,0.31941917]
[1688257794918,3.51941,1925.7,1925.6,0.60613552]
[1688257796137,3.2078,1925.7,1925.6,7.80813552]
[1688257796434,3.30279012,1925.7,1925.6,7.80813552]
[1688257797019,3.2078,1925.8,1925.7,5.0]
[1688257797234,3.2078,1925.8,1925.7,5.26235749]
[1688257797429,3.2078,1925.8,1925.7,5.57396749]
[1688257798128,7.273,1926.1,1925.8,5.48571635]
[1688257798335,0.93471,1926.2,1926.0,5.0]
[1688257798534,0.31155,1926.1,1926.0,5.31154]
[1688257798734,0.31155,1926.1,1926.0,0.59825635]
[1688257798937,7.58455,1926.1,1925.9,0.31158]
[1688257799150,10.4808,1926.0,1925.9,0.31158]
[1688257799432,12.97783875,1926.0,1925.9,0.31158]
[1688257800037,12.97783875,1926.0,1925.8,0.77895]
[1688257800233,0.31159,1925.8,1925.6,0.31938917]
[1688257800534,4.08689412,1925.7,1925.6,0.31941917]
[1688257800957,0.31161,1925.7,1925.6,0.60613552]
[1688257801129,0.31161,1925.7,1925.6,0.31941917]
[1688257801733,0.31161,1925.7,1925.6,0.60613552]
[1688257805229,3.2078,1925.8,1925.6,7.80813552]
[1688257805430,0.31158,1925.9,1925.8,0.31159]
[1688257805634,0.31158,1925.9,1925.8,0.59830635]
[1688257805834,0.31158,1925.9,1925.8,0.31159]
[1688257806041,0.31158,1925.9,1925.8,0.5982709]
[1688257806248,0.31158,1925.9,1925.8,0.31159]
[1688257806432,0.31158,1925.9,1925.8,0.59830635]
[1688257806735,0.31158,1925.9,1925.8,0.31159]
[1688257806936,0.31158,1925.9,1925.8,0.88498794]
[1688257808338,1.90401958,1925.9,1925.8,0.59827159]
[1688257808836,9.17701958,1925.9,1925.8,0.28668159]
[1688257809928,9.17701958,1925.9,1925.6,0.00778917]
[1688257810236,10.4428,1925.7,1925.6,0.00778917]
[1688257810537,12.34684958,1925.7,1925.6,0.00778917]
[1688257813433,12.34684958,1925.7,1925.6,0.60613552]
[1688257813434,5.11184958,1925.7,1925.6,0.60613552]
[1688257813634,0.31161,1925.7,1925.6,0.60613552]
[1688257814043,3.51941,1925.7,1925.6,0.60613552]
[1688257817045,3.51941,1925.7,1925.6,0.31941917]
[1688257817538,3.51941,1925.7,1925.6,0.66964731]
[1688257817743,3.51941,1925.7,1925.6,0.95636366]
[1688257818738,3.51941,1925.7,1925.6,0.66964731]
[1688257818939,3.51941,1925.7,1925.6,0.95636366]
[1688257819439,3.51941,1925.7,1925.6,0.66964731]
[1688257819832,5.11184958,1925.7,1925.6,0.66964731]
[1688257820944,5.11184958,1925.7,1925.6,0.95636366]
[1688257821442,5.11184958,1925.7,1925.6,0.66964731]
[1688257822036,5.11184958,1925.7,1925.6,0.95636366]
[1688257822339,5.11184958,1925.7,1925.6,0.66964731]
[1688257823338,12.38484958,1925.7,1925.6,0.35801731]
[1688257824337,12.38484958,1925.7,1925.6,1.731e-05]
[1688257824545,12.38484958,1925.7,1925.2,0.77919]
[1688257824832,3.51947,1925.3,1925.2,0.77919]
[1688257825339,10.73347,1925.3,1925.0,0.77925]
[1688257825642,1.90412958,1925.2,1925.1,0.3195012]
[1688257825843,4.08697412,1925.2,1925.1,0.3195012]
[1688257826043,5.6794137,1925.2,1925.1,0.3195012]
[1688257831952,5.6794137,1925.2,1925.1,0.91556136]
[1688257832251,5.11192958,1925.2,1925.1,1.20227771]
[1688257832439,3.51949,1925.2,1925.1,1.20227771]
[1688257835554,3.51949,1925.2,1925.1,0.91556136]
[1688257835954,3.51949,1925.2,1925.1,1.20227771]
[1688257836551,3.51949,1925.2,1925.1,0.91556136]
[1688257839958,10.73349,1925.2,1925.1,0.91556136]
[1688257840164,12.32592958,1925.2,1925.1,0.91556136]
[1688257840353,12.34692958,1925.2,1925.1,0.91556136]
[1688257840759,12.36792958,1925.2,1925.1,0.91556136]
[1688257841062,12.36792958,1925.2,1925.1,1.20227771]
[1688257841259,1.90412958,1925.2,1925.1,1.20227771]
[1688257841470,0.31169,1925.2,1925.1,1.20227771]
[1688257845755,3.51949,1925.2,1925.1,0.91556136]
[1688257845984,3.51949,1925.2,1925.1,0.60385136]
[1688257846268,10.79249,1925.2,1925.1,0.91556136]
[1688257846461,12.38492958,1925.2,1925.1,0.91556136]
[1688257847769,12.38492958,1925.2,1925.1,1.20227771]
[1688257848666,12.38492958,1925.2,1925.1,0.91556136]
[1688257855966,9.76392958,1925.2,1925.1,0.91556136]
[1688257856178,9.76392958,1925.2,1925.1,0.60385136]
[1688257861094,9.76392958,1925.2,1924.5,1.03933]
[1688257861284,3.2078,1924.6,1924.5,1.03933]
[1688257861482,3.51959,1924.6,1924.5,1.32604635]
[1688257861775,3.51959,1924.6,1924.5,1.03933]
[1688257861990,3.51959,1924.6,1924.5,1.85343371]
[1688257862376,3.51959,1924.6,1924.5,1.56671736]
[1688257862573,8.19759,1924.6,1924.5,0.93717164]
[1688257862876,9.71399586,1924.6,1924.5,0.93717164]
[1688257863077,9.71399586,1924.6,1924.5,0.727513]
[1688257866196,9.71399586,1924.6,1924.5,1.039313]
[1688257868387,9.71399586,1924.6,1924.5,1.32602935]
[1688257868692,9.71399586,1924.6,1924.5,1.039313]
[1688257870083,1.82819586,1924.6,1924.5,1.32602935]
[1688257870287,0.31179,1924.6,1924.5,1.32602935]
[1688257870480,0.31179,1924.6,1924.5,1.039313]
[1688257870687,3.51959,1924.6,1924.5,1.039313]
[1688257870879,5.03599586,1924.6,1924.5,1.039313]
[1688257872284,9.68799586,1924.6,1924.5,1.039313]
[1688257876191,9.71399586,1924.6,1924.5,0.727513]
[1688257877499,9.71399586,1924.6,1924.5,1.039313]
[1688257879900,9.71399586,1924.6,1924.5,0.727513]
[1688257899215,9.71399586,1924.6,1924.4,0.00779403]
[1688257899416,5.21948412,1924.5,1924.4,0.00779403]
[1688257899720,7.04768998,1924.5,1924.4,0.00779403]
[1688257899922,11.92568998,1924.5,1924.4,0.00779403]
[1688257907117,11.92568998,1924.5,1924.4,0.79677671]
[1688257914020,12.34883924,1924.5,1924.4,0.79677671]
[1688257919624,12.34883924,1924.5,1923.8,5.7177]
[1688257919625,17.02683924,1924.5,1923.5,4.98992]
[1688257919827,4.665,1924.3,1923.8,4.7774]
[1688257920127,7.8858,1923.9,1923.8,4.7774]
[1688257920318,8.1977,1923.9,1923.8,4.7774]
[1688257920619,8.76518412,1923.9,1923.8,4.7774]
[1688257920827,10.28158998,1923.9,1923.8,4.7774]
[1688257921330,9.71410586,1923.9,1923.8,5.70663735]
[1688257927534,9.71410586,1923.9,1923.8,5.9933537]
[1688257928329,9.71410586,1923.9,1923.8,5.70663735]
[1688257929031,10.13910136,1923.9,1923.8,5.70663735]
[1688257931336,10.13910136,1923.9,1923.8,5.39471735]
[1688257934033,10.13910136,1923.9,1923.7,0.00779687]
[1688257934336,4.98093,1923.7,1923.2,0.31199]
[1688257934541,3.51978,1923.4,1923.3,5.53913972]
[1688257934739,3.51978,1923.4,1923.3,5.67260139]
[1688257934740,8.75226412,1923.4,1923.3,5.67260139]
[1688257937029,8.75226412,1923.4,1923.2,0.00779889]
[1688257937234,4.678,1923.3,1922.8,0.78018]
[1688257937545,0.87949412,1923.2,1922.9,11.05616612]
[1688257937838,8.19785,1923.0,1922.9,11.36821612]
[1688257938028,8.76533412,1923.0,1922.9,11.36821612]
[1688257939135,8.19785,1923.0,1922.9,11.65493247]
[1688257939336,4.96405,1923.0,1922.9,11.65493247]
[1688257940438,8.17185,1923.0,1922.9,11.36821612]
[1688257940640,8.17185,1923.0,1922.9,11.65493247]
[1688257940939,8.17185,1923.0,1922.9,11.36821612]
[1688257942242,8.19785,1923.0,1922.9,11.36821612]
[1688257943549,8.19785,1923.0,1922.9,11.05616612]
[1688257943735,8.19785,1923.0,1922.9,11.36822612]
[1688257943935,8.19785,1923.0,1922.9,11.05616612]
[1688257944348,8.19785,1923.0,1922.9,11.36822612]
[1688257946040,8.19785,1923.0,1922.9,11.05616612]
[1688257946345,8.19785,1923.0,1922.9,11.36822612]
[1688257948237,8.19785,1923.0,1922.9,11.05616612]
[1688257948837,8.19785,1923.0,1922.9,0.50806612]
[1688257949036,8.19785,1923.0,1922.8,0.31732577]
[1688257949248,0.56748412,1922.9,1922.8,0.00524577]
[1688257949443,0.87954412,1922.9,1922.8,0.00524577]
[1688257949736,0.87954412,1922.9,1922.8,0.31732577]
[1688257949942,0.87954412,1922.9,1922.8,0.00524577]
[1688257950940,5.55754412,1922.9,1922.8,0.00524577]
[1688257951546,5.55754412,1922.9,1922.4,0.31213]
[1688257951751,4.678,1922.5,1922.4,0.31213]
[1688257951955,4.99013,1922.5,1922.4,0.31213]
[1688257952145,5.55761412,1922.5,1922.4,0.97496431]
[1688257953454,5.55761412,1922.5,1922.4,0.66283431]
[1688257954149,10.23561412,1922.5,1922.2,5.0752]
[1688257954343,7.8858,1922.3,1922.0,5.86369]
[1688257954554,4.678,1922.1,1922.0,10.76879]
[1688257954759,4.99019,1922.1,1922.0,10.76879]
[1688257955652,0.31219,1922.1,1922.0,10.76879]
[1688257955844,5.99997412,1922.2,1922.0,11.05550635]
[1688257956045,5.99997412,1922.2,1922.1,3.51999]
[1688257956654,5.99997412,1922.2,1922.1,0.31219]
[1688257957455,5.99997412,1922.2,1922.0,10.76879]
[1688257957657,5.99997412,1922.2,1921.6,0.31227]
[1688257957658,12.5548,1922.1,1921.6,0.31227]
[1688257957857,7.8728,1921.7,1921.5,0.93686]
[1688257958056,4.99027,1921.6,1921.5,1.35623513]
[1688257958252,5.55775412,1921.6,1921.5,1.35623513]
[1688257958553,5.55775412,1921.6,1921.4,0.78069]
[1688257958755,4.652,1921.5,1921.4,0.78069]
[1688257958958,4.96428,1921.5,1921.4,0.78069]
[1688257959255,0.31232,1921.3,1921.2,0.31228]
[1688257959462,5.55780412,1921.3,1921.2,0.31228]
[1688257960460,5.55780412,1921.3,1921.2,0.59899635]
[1688257960959,5.55780412,1921.3,1921.2,0.31228]
[1688257961857,5.55780412,1921.3,1921.2,1.54617186]
[1688257962654,5.55780412,1921.3,1921.2,0.80309186]
[1688257962858,5.55780412,1921.3,1920.6,1.04141]
[1688257962859,10.23580412,1921.3,1920.6,1.04141]
[1688257963171,10.23580412,1921.3,1920.3,0.31248]
[1688257963172,0.31243,1920.6,1920.3,0.31248]
[1688257963350,4.96447,1920.4,1920.3,0.31248]
[1688257963555,8.17227,1920.4,1920.3,0.31248]
[1688257963750,8.17227,1920.4,1920.0,0.88123]
[1688257963951,4.99052,1920.1,1920.0,0.88123]
[1688257964150,4.99052,1920.1,1920.0,0.1]
[1688257964356,5.55800412,1920.1,1920.0,0.1]
[1688257964553,5.55800412,1920.1,1920.0,0.41253]
[1688257964756,5.55800412,1920.1,1919.8,0.42028273]
[1688257965057,7.8728,1919.9,1919.4,0.31262]
[1688257965261,4.678,1919.5,1919.4,0.31262]
[1688257965473,0.88004412,1919.8,1919.4,0.31262]
[1688257965474,4.652,1919.6,1919.4,0.59933635]
[1688257965760,4.665,1919.8,1919.6,0.3126]
[1688257965962,7.297,1919.8,1919.6,0.86167384]
[1688257966149,7.60956,1919.8,1919.6,0.3126]
[1688257966359,7.248,1919.5,1919.2,0.31266]
[1688257966554,10.5048,1919.3,1919.2,0.31266]
[1688257966860,11.38493412,1919.3,1919.2,0.31266]
[1688257967061,7.297,1919.4,1919.2,0.59937635]
[1688257967257,7.237,1919.6,1919.2,11.17517635]
[1688257967458,7.297,1919.8,1919.5,0.31261]
[1688257967655,0.78149,1919.9,1919.7,0.31258]
[1688257968064,7.297,1919.8,1919.7,0.31258]
[1688257968257,0.31258,1919.7,1919.5,0.93774]
[1688257968456,10.5048,1919.6,1919.5,0.93774]
[1688257968663,10.81739,1919.6,1919.5,0.93774]
[1688257968853,10.81739,1919.6,1919.2,0.93798]
[1688257969056,0.31266,1919.2,1919.1,0.78168]
[1688257969273,11.35894412,1919.2,1919.1,0.78168]
[1688257969467,11.35894412,1919.2,1918.6,3.2078]
[1688257969468,7.231,1918.9,1918.6,0.31273]
[1688257969657,10.5048,1918.7,1918.6,0.31273]
[1688257969968,10.5048,1918.7,1918.6,10.81753]
[1688257969969,0.31274,1918.7,1918.6,10.81753]
[1688257970164,0.31274,1918.7,1918.1,1.35636649]
[1688257970165,7.60974,1918.7,1918.1,1.35636649]
[1688257970463,8.24303758,1918.9,1918.3,0.93842]
[1688257970464,10.81759,1918.4,1918.3,0.93842]
[1688257970658,7.297,1918.4,1918.3,0.93842]
[1688257970857,18.09959,1918.4,1918.3,0.3128]
[1688257971156,15.45927412,1918.4,1918.2,0.78205]
[1688257971355,7.297,1918.3,1918.2,0.78205]
[1688257971556,0.78195,1918.8,1918.2,8.33276635]
[1688257971865,0.00781758,1918.9,1918.6,10.4718]
[1688257972163,8.20898,1919.4,1918.9,0.31271]
[1688257972365,8.20898,1919.4,1919.1,0.31267]
[1688257972563,7.297,1919.2,1919.1,0.31267]
[1688257972759,7.60966,1919.2,1919.1,1.60690263]
[1688257973266,8.17714412,1919.2,1919.1,1.60690263]
[1688257973660,7.24481596,1919.3,1919.1,5.10141898]
[1688257973860,0.00781596,1919.3,1919.1,12.39841898]
[1688257974059,0.00781596,1919.3,1919.2,0.26235749]
[1688257974266,0.00781596,1919.3,1919.2,0.57501749]
[1688257974760,0.31257,1919.8,1919.3,0.28671635]
[1688257975067,0.93744,1920.3,1919.7,10.4878]
[1688257975282,0.93744,1920.3,1920.2,3.2078]
[1688257975574,0.93744,1920.3,1920.2,3.52029]
[1688257975789,0.93744,1920.3,1920.2,3.80700635]
[1688257976062,0.93744,1920.3,1920.2,0.31249]
[1688257976571,5.0,1920.2,1920.1,0.00781148]
[1688257976869,5.0,1920.2,1919.8,0.78137]
[1688257976870,5.0,1920.0,1919.3,0.78148]
[1688257977072,5.0,1920.0,1919.4,0.78152]
[1688257977073,14.5688,1919.7,1919.4,0.78152]
[1688257977369,0.31258,1919.7,1919.5,0.3126]
[1688257977667,0.78147,1919.8,1919.6,0.28671635]
[1688257977866,0.78147,1919.8,1919.7,0.31257]
[1688257977867,1.34895412,1919.8,1919.7,0.31257]
[1688257978068,1.34895412,1919.8,1919.4,11.47181413]
[1688257978069,1.34895412,1919.8,1919.4,0.00781413]
[1688257978262,0.3126,1919.5,1919.4,0.32043413]
[1688257978457,0.78151,1919.6,1919.4,0.60715048]
[1688257978867,4.55679412,1919.6,1919.4,0.60715048]
[1688257979060,1.34899412,1919.6,1919.4,0.60715048]
[1688257979283,0.78146,1919.7,1919.5,0.26235749]
[1688257979466,0.78146,1919.7,1919.6,3.52038]
[1688257979663,0.31256,1919.9,1919.6,14.98438]
[1688257979864,0.31256,1919.9,1919.8,3.2078]
[1688257980065,0.7813,1920.2,1919.8,14.98435]
[1688257980373,0.00781148,1920.4,1920.2,0.31249]
[1688257980572,0.00781148,1920.4,1920.3,14.95851635]
[1688257980777,0.00781148,1920.4,1920.3,15.27098635]
[1688257981070,0.78106,1920.9,1920.3,15.53334384]
[1688257981266,1.0411,1921.2,1920.9,0.31237]
[1688257981471,0.31233,1921.3,1921.2,0.31232]
[1688257981869,0.31233,1921.3,1921.1,0.78082]
[1688257982060,0.94907283,1921.2,1920.9,0.93698]
[1688257982371,0.31234,1921.1,1921.0,0.60688397]
[1688257982572,0.4607282,1921.1,1921.0,0.60688397]
[1688257982769,0.52734254,1921.1,1921.0,0.32016762]
[1688257983968,0.52734254,1921.1,1921.0,0.00780762]
[1688257984174,0.52734254,1921.1,1921.0,0.32016762]
[1688257984771,15.12814254,1921.1,1920.6,0.93724]
[1688257984970,0.56748412,1921.0,1920.7,0.3124]
[1688257985167,0.31237,1920.9,1920.8,0.28671635]
[1688257985371,0.31237,1920.9,1920.8,0.59908635]
[1688257985675,0.31237,1920.9,1920.6,0.93724]
[1688257985863,0.31237,1920.9,1920.7,0.28671635]
[1688257986069,0.31237,1920.9,1920.8,0.31239]
[1688257986269,0.87985412,1920.9,1920.8,0.31239]
[1688257986572,4.08765412,1920.9,1920.8,0.18730407]
[1688257986784,5.0,1920.8,1920.6,0.00780945]
[1688257986971,5.0,1920.6,1920.0,0.31249]
[1688257987174,3.2078,1920.3,1920.0,0.31249]
[1688257987471,0.78122,1920.3,1920.1,0.59921635]
[1688257987673,0.31249,1920.2,1920.1,0.59921635]
[1688257987864,11.67349,1920.2,1919.6,15.4532]
[1688257988068,0.31252,1920.0,1919.8,0.78137]
[1688257988272,0.88000412,1920.0,1919.8,1.06808635]
[1688257988776,0.88000412,1920.0,1919.8,0.31255]
[1688257988968,3.2078,1919.9,1919.8,0.31255]
[1688257989277,0.31253,1919.9,1919.8,0.31255]
[1688257989477,3.52033,1919.9,1919.6,0.93768]
[1688257989685,3.2078,1919.7,1919.6,0.93768]
[1688257989979,0.31257,1919.7,1919.6,0.93768]
[1688257990275,3.52037,1919.7,1919.5,0.31256]
[1688257990473,0.56748412,1919.6,1919.4,0.78143]
[1688257990674,0.88008412,1919.6,1919.5,0.78149]
[1688257990977,0.93771,1920.0,1919.5,0.78149]
[1688257990978,11.361,1920.0,1919.5,0.78149]
[1688257991175,0.00781189,1920.3,1919.9,3.2078]
[1688257991367,0.00781189,1920.3,1920.1,0.3125]
[1688257991368,0.32028189,1920.3,1920.1,0.3125]
[1688257991567,0.32028189,1920.3,1920.1,0.59921635]
[1688257991772,0.32028189,1920.3,1919.9,0.78126]
[1688257991773,11.402,1920.2,1919.9,0.78126]
[1688257991981,11.402,1920.2,1920.1,0.3125]
[1688257992179,11.75249,1920.2,1920.1,0.3125]
[1688257992477,12.31997412,1920.2,1920.1,0.3125]
[1688257993067,0.00781189,1920.3,1920.1,0.59921635]
[1688257993272,0.00781189,1920.3,1920.2,3.52029]
[1688257993475,0.00781189,1920.3,1920.2,3.78264749]
[1688257993670,0.00781189,1920.3,1920.2,15.24664749]
[1688257993868,0.93718,1921.0,1920.2,15.24664749]
[1688257994077,0.47381683,1920.9,1920.6,0.31243]
[1688257994277,0.41576119,1920.9,1920.6,0.57478749]
[1688257994672,0.41576119,1920.9,1920.7,3.49451635]
[1688257995074,0.41576119,1920.9,1920.8,0.31239]
[1688257995482,0.10338119,1920.9,1920.8,0.57474749]
[1688257995977,0.21363174,1920.9,1920.8,0.57474749]
[1688257996369,0.15876477,1920.9,1920.8,0.57474749]
[1688257996575,0.15876477,1920.9,1920.8,0.26235749]
[1688257996789,0.15876477,1920.9,1920.7,3.49451635]
[1688257997082,0.15876477,1920.9,1920.7,3.2078]
[1688257997782,0.56748412,1920.8,1920.6,0.00780925]
[1688257997974,11.393,1920.7,1920.6,0.00780925]
[1688257999386,14.6008,1920.7,1920.6,0.08725649]
[1688257999582,14.6008,1920.7,1920.6,0.28695122]
[1688257999781,11.393,1920.7,1920.6,0.28695122]